bitfinex/quotes_SOLUSD_20240729
["timestamp","ask_amount","ask_price","bid_price","bid_amount"]
[1722259928229,31.3729,191.83,191.76,0.75634543]
[1722259928436,26.16,191.83,191.76,1.79921693]
[1722259928629,26.16,191.83,191.76,0.75634543]
[1722259929021,31.3729,191.83,191.76,0.75634543]
[1722259929641,26.16,191.83,191.76,0.75634543]
[1722259930137,31.3729,191.83,191.76,0.75634543]
[1722259930336,26.16,191.83,191.76,0.75634543]
[1722259930531,5.2135,191.81,191.76,0.75634543]
[1722259930829,45.34,191.82,191.76,0.75634543]
[1722259930830,0.17,191.82,191.76,0.75634543]
[1722259931005,26.16,191.83,191.76,1.79926858]
[1722259931819,31.3715,191.89,191.77,1.04284196]
[1722259932124,1.65191701,191.9,191.79,6.1858]
[1722259932326,1.65191701,191.9,191.8,1.04243576]
[1722259932515,6.86301701,191.9,191.79,6.1858]
[1722259932713,1.65191701,191.9,191.8,1.04244611]
[1722259932915,1.65191701,191.9,191.8,46.04244611]
[1722259933125,1.65191701,191.9,191.81,15.1445]
[1722259933317,1.65191701,191.9,191.82,46.38214776]
[1722259933506,1.65191701,191.9,191.83,1.04217152]
[1722259933818,1.65191701,191.9,191.84,21.6703]
[1722259934014,1.65191701,191.9,191.85,46.04203219]
[1722259934217,32.5205,192.06,191.85,46.04203219]
[1722259934218,6.4861,192.06,191.86,1.38190667]
[1722259934414,26.16,192.03,191.87,15.1927]
[1722259934617,26.16,192.03,191.88,45.0]
[1722259935120,5.2081,192.01,191.89,0.17]
[1722259935326,5.2083,192.0,191.9,1.66488805]
[1722259936122,76.37,192.04,191.9,1.66488805]
[1722259936310,35.66,192.03,191.9,1.66488805]
[1722259936507,46.99,191.99,191.9,1.66488805]
[1722259936708,5.2099,191.95,191.9,1.66488805]
[1722259937338,50.2099,191.94,191.9,1.66488805]
[1722259937637,5.2107,191.91,191.9,1.66488805]
[1722259937836,97.5407,191.91,191.9,1.66488805]
[1722259938141,117.5407,191.91,191.9,1.66488805]
[1722259938534,101.8807,191.91,191.9,1.66488805]
[1722259938840,117.5407,191.91,191.9,1.66488805]
[1722259939223,70.5507,191.91,191.9,1.66488805]
[1722259939426,70.3807,191.91,191.9,1.66488805]
[1722259940028,86.2107,191.91,191.9,1.66488805]
[1722259940348,81.0,191.91,191.78,6.218]
[1722259940649,70.5512,191.9,191.78,6.218]
[1722259940818,5.2116,191.88,191.78,6.218]
[1722259941026,5.2119,191.87,191.78,6.218]
[1722259941514,5.2115,191.89,191.78,6.218]
[1722259941732,50.5516,191.88,191.78,6.218]
[1722259941963,5.2119,191.87,191.78,6.218]
[1722259942143,5.2122,191.86,191.78,6.218]
[1722259942351,45.34,191.85,191.78,6.218]
[1722259943723,50.5524,191.85,191.78,6.218]
[1722259944117,5.2126,191.84,191.78,6.218]
[1722259944318,45.34,191.85,191.78,6.218]
[1722259944718,5.213,191.83,191.78,6.218]
[1722259945343,50.5526,191.85,191.78,6.218]
[1722259945548,5.2127,191.84,191.78,6.218]
[1722259946139,0.17,191.85,191.78,6.218]
[1722259946451,5.2129,191.84,191.78,6.218]
[1722259946618,5.2132,191.83,191.78,6.218]
[1722259946944,5.2135,191.81,191.76,15.94904543]
[1722259947418,45.0,191.82,191.76,15.94904543]
[1722259947419,5.2131,191.83,191.76,15.94904543]
[1722259947838,0.17,191.84,191.76,15.94904543]
[1722259948045,20.0,191.84,191.76,15.94904543]
[1722259948223,25.2128,191.84,191.76,15.94904543]
[1722259948938,20.0,191.84,191.76,15.94904543]
[1722259949134,45.34,191.83,191.76,15.94904543]
[1722259949441,5.2137,191.8,191.76,15.94904543]
[1722259949844,5.2145,191.77,191.76,15.94904543]
[1722259950144,0.34,191.81,191.76,15.94904543]
[1722259950322,45.34,191.81,191.76,15.94904543]
[1722259950723,5.214,191.79,191.76,15.94904543]
[1722259951124,45.34,191.81,191.76,15.94904543]
[1722259951340,5.2137,191.8,191.76,15.94904543]
[1722259951744,5.2141,191.79,191.76,15.94904543]
[1722259952347,5.2143,191.78,191.76,15.94904543]
[1722259952839,5.214,191.79,191.76,15.94904543]
[1722259953043,5.2144,191.78,191.76,15.94904543]
[1722259953560,5.214,191.79,191.76,15.94904543]
[1722259953735,5.2143,191.78,191.76,15.94904543]
[1722259954444,5.2145,191.77,191.76,0.75634543]
[1722259955246,31.3945,191.77,191.76,0.75634543]
[1722259955539,26.18,191.77,191.76,0.75634543]
[1722259956165,26.18,191.77,191.75,27.97444722]
[1722259956941,50.5548,191.76,191.75,27.97444722]
[1722259957138,26.18,191.8,191.75,27.97444722]
[1722259957338,50.384,191.79,191.75,27.97444722]
[1722259957733,5.2138,191.8,191.75,27.97444722]
[1722259957933,26.18,191.8,191.75,27.97444722]
[1722259958141,5.2148,191.76,191.75,27.97444722]
[1722259958440,64.3632,191.82,191.75,27.97444722]
[1722259958757,5.2135,191.81,191.75,27.97444722]
[1722259959265,26.18,191.81,191.75,27.97444722]
[1722259959850,5.2139,191.8,191.75,27.97444722]
[1722259960155,26.18,191.84,191.76,1.04297331]
[1722259960344,26.18,191.84,191.75,27.97444722]
[1722259960543,5.2141,191.79,191.75,27.97444722]
[1722259960841,5.2137,191.8,191.75,27.97444722]
[1722259961041,5.2138,191.8,191.75,27.97444722]
[1722259961775,26.18,191.81,191.75,27.97444722]
[1722259962264,5.2138,191.8,191.75,27.97444722]
[1722259963368,5.2141,191.79,191.75,27.97444722]
[1722259963863,5.2137,191.8,191.75,27.97444722]
[1722259964360,26.18,191.77,191.75,27.97444722]
[1722259965257,45.34,191.79,191.75,27.97444722]
[1722259965457,5.2148,191.76,191.75,27.97444722]
[1722259965650,50.3848,191.76,191.75,27.97444722]
[1722259966366,50.3848,191.76,191.75,22.23509034]
[1722259966555,50.5548,191.76,191.75,22.23509034]
[1722259967254,50.5548,191.76,191.75,11.95199248]
[1722259967255,66.2148,191.76,191.75,11.95199248]
[1722259967448,110.5819,191.76,191.75,4.42328636]
[1722259967652,46.99,191.74,191.71,2.88226541]
[1722259967864,112.32419554,191.76,191.71,2.88226541]
[1722259967865,31.3959,191.72,191.71,2.88226541]
[1722259968049,31.7359,191.72,191.71,2.88226541]
[1722259968855,26.35,191.72,191.71,2.88226541]
[1722259969076,26.18,191.72,191.71,2.88226541]
[1722259969450,5.2154,191.74,191.71,2.88226541]
[1722259969647,5.3856,191.73,191.71,2.88226541]
[1722259969851,26.18,191.75,191.71,2.88226541]
[1722259970058,26.18,191.72,191.71,2.88226541]
[1722259970256,31.3959,191.72,191.71,2.88226541]
[1722259970967,31.5659,191.72,191.71,2.88226541]
[1722259971276,5.3859,191.72,191.71,2.88226541]
[1722259971575,26.18,191.75,191.71,2.88226541]
[1722259971745,5.2148,191.76,191.71,2.88226541]
[1722259971952,33.94709554,191.8,191.71,2.88226541]
[1722259972148,36.04747182,191.8,191.71,2.88226541]
[1722259972352,26.18,191.8,191.71,2.88226541]
[1722259972967,20.79849554,191.85,191.72,1.04296482]
[1722259972968,26.18,191.83,191.72,1.04296482]
[1722259973273,5.2139,191.8,191.71,2.88226541]
[1722259974369,5.2157,191.73,191.71,2.88226541]
[1722259974573,26.18,191.77,191.71,2.88226541]
[1722259974961,5.2154,191.74,191.71,2.88226541]
[1722259975277,26.18,191.77,191.71,2.88226541]
[1722259975578,0.17,191.76,191.71,2.88226541]
[1722259975753,5.3848,191.76,191.71,2.88226541]
[1722259975949,0.17,191.76,191.71,2.88226541]
[1722259976256,5.3849,191.76,191.71,2.88226541]
[1722259976559,5.2151,191.75,191.71,2.88226541]
[1722259977175,26.18,191.77,191.71,2.88226541]
[1722259977358,26.18,191.8,191.71,2.88226541]
[1722259977754,31.3938,191.8,191.71,2.88226541]
[1722259978167,26.18,191.8,191.71,2.88226541]
[1722259978368,5.2145,191.78,191.71,2.88226541]
[1722259978566,26.18,191.8,191.71,3.92537003]
[1722259978751,0.34,191.79,191.71,2.88226541]
[1722259979157,26.18,191.8,191.71,2.88226541]
[1722259979687,5.2148,191.76,191.71,2.88226541]
[1722259979855,31.3948,191.77,191.71,2.88226541]
[1722259980056,26.18,191.77,191.71,2.88226541]
[1722259980654,0.17,191.76,191.71,2.88226541]
[1722259980857,5.3848,191.76,191.71,2.88226541]
[1722259981477,0.17,191.76,191.71,2.88226541]
[1722259981656,0.17,191.79,191.71,2.88226541]
[1722259981852,0.34,191.79,191.71,2.88226541]
[1722259982065,26.18,191.8,191.71,2.88226541]
[1722259982880,26.18,191.83,191.71,8.09836541]
[1722259983060,26.18,191.83,191.72,1.04296804]
[1722259983255,31.3929,191.83,191.72,45.0]
[1722259983469,26.18,191.83,191.72,5.2159]
[1722259983668,31.393,191.83,191.72,5.2159]
[1722259984874,27.40489554,191.89,191.75,15.9078]
[1722259984875,26.18,191.86,191.75,15.9078]
[1722259985082,26.18,191.86,191.76,1.04268836]
[1722259985269,14.37599554,191.89,191.76,50.2148]
[1722259985270,5.2118,191.87,191.76,50.2148]
[1722259986081,39.15859554,191.89,191.77,1.04263911]
[1722259986257,31.3915,191.89,191.77,6.25713911]
[1722259986458,5.2109,191.91,191.79,5.2139]
[1722259986691,31.3905,191.92,191.8,11.7391]
[1722259987001,31.3905,191.92,191.81,15.9832]
[1722259987291,382.4,191.96,191.83,5.2129]
[1722259987496,5.2099,191.95,191.84,45.0]
[1722259987664,5.2099,191.94,191.84,45.0]
[1722259987966,5.2096,191.95,191.84,45.0]
[1722259988283,5.21,191.94,191.84,45.0]
[1722259988480,5.21,191.94,191.83,45.0]
[1722259988784,5.2102,191.93,191.83,45.0]
[1722259989090,5.2105,191.92,191.82,45.0]
[1722259989383,382.4,191.96,191.82,46.04220023]
[1722259989585,382.4,191.96,191.82,45.0]
[1722259989770,382.4,191.96,191.85,5.2122]
[1722259989978,29.4,191.98,191.86,45.0]
[1722259990267,5.2089,191.98,191.86,51.25419491]
[1722259990676,5.2091,191.97,191.86,45.0]
[1722259990884,42.4198,192.02,191.87,22.6424]
[1722259991088,29.4,192.02,191.88,45.0]
[1722259991288,45.06,192.02,191.87,22.6424]
[1722259991595,15.66,191.99,191.88,1.04211169]
[1722259991777,44.3509,192.0,191.88,1.04218093]
[1722259991778,5.2098,191.95,191.88,1.04218093]
[1722259992088,20.0,191.98,191.87,22.6424]
[1722259992386,5.2102,191.93,191.87,22.6424]
[1722259992685,0.34,191.97,191.87,24.30754837]
[1722259992867,0.17,191.96,191.88,1.66506159]
[1722259993275,0.17,191.97,191.88,1.66506159]
[1722259993475,5.2088,191.99,191.88,1.66506159]
[1722259993672,20.0,192.01,191.88,46.66506159]
[1722259994201,20.0,192.01,191.88,1.66506159]
[1722259994380,5.2091,191.97,191.88,1.66506159]
[1722259994693,5.2092,191.97,191.88,1.66506159]
[1722259994872,64.3502,192.01,191.88,1.66506159]
[1722259995189,5.2094,191.96,191.88,1.66506159]
[1722259995860,5.2094,191.96,191.88,2.70720448]
[1722259996389,0.17,191.97,191.88,1.66506159]
[1722259996685,5.2099,191.94,191.88,1.66506159]
[1722259997067,0.34,191.97,191.88,1.66506159]
[1722259997263,45.34,191.97,191.88,1.66506159]
[1722259997686,5.2094,191.96,191.88,2.70722072]
[1722259997896,5.2091,191.98,191.89,1.04215913]
[1722259998073,5.2083,192.01,191.9,1.04202689]
[1722259998392,5.2069,192.05,191.93,5.2101]
[1722259998584,7.76709554,192.08,191.94,50.2098]
[1722259998780,7.76709554,192.08,191.95,1.04164291]
[1722259999083,5.2075,192.03,191.96,1.04164291]
[1722259999290,7.76709554,192.08,191.92,11.3139]
[1722259999501,52.11309554,192.08,191.92,6.1035]
[1722259999699,5.2083,192.01,191.92,6.1035]
[1722259999866,5.2078,192.02,191.92,6.1035]
[1722260000183,5.2082,192.01,191.92,6.1035]
[1722260000568,5.2077,192.03,191.92,6.1035]
[1722260000763,5.2077,192.03,191.93,1.66462782]
[1722260000973,0.34,192.04,191.94,1.04178436]
[1722260001194,5.2083,192.01,191.93,1.66462782]
[1722260001373,5.2086,191.99,191.93,2.70650837]
[1722260001685,5.2083,192.0,191.93,2.70650837]
[1722260001882,5.2083,192.0,191.93,1.66462782]
[1722260002086,5.2086,191.99,191.93,1.66462782]
[1722260002386,5.2089,191.98,191.93,1.66462782]
[1722260002891,0.17,192.02,191.93,1.66462782]
[1722260003079,5.2085,192.0,191.93,1.66462782]
[1722260003284,5.2087,191.99,191.93,1.66462782]
[1722260003991,5.2097,191.95,191.93,1.66462782]
[1722260004197,5.2093,191.97,191.93,1.66462782]
[1722260004575,5.2095,191.96,191.93,1.66462782]
[1722260004788,5.2091,191.97,191.93,1.66462782]
[1722260005300,5.2094,191.96,191.93,1.66462782]
[1722260005496,0.34,192.02,191.93,1.66462782]
[1722260005687,5.2083,192.0,191.93,2.70652236]
[1722260005883,5.2083,192.0,191.93,1.66462782]
[1722260006194,5.2083,192.0,191.93,2.70652103]
[1722260006402,5.2081,192.01,191.93,2.70652103]
[1722260006570,25.5478,192.02,191.93,2.70652103]
[1722260006773,25.5478,192.02,191.93,1.66462782]
[1722260006987,5.2081,192.01,191.93,1.66462782]
[1722260007271,26.11,192.06,191.94,1.04182718]
[1722260007477,26.11,192.06,191.95,16.0071]
[1722260007778,31.3167,192.06,191.96,45.0]
[1722260007978,19.3184,192.1,191.97,1.66428097]
[1722260007979,26.11,192.09,191.97,1.66428097]
[1722260008180,5.2069,192.06,191.97,1.66428097]
[1722260008392,5.2069,192.05,191.97,1.66428097]
[1722260008590,26.11,192.06,191.97,1.66428097]
[1722260008808,5.2072,192.04,191.98,1.04170323]
[1722260009100,26.11,192.06,191.98,1.04158174]
[1722260009286,5.2069,192.05,191.97,1.66428097]
[1722260009482,5.2073,192.04,191.97,1.66428097]
[1722260009682,44.3453,192.09,191.97,1.66428097]
[1722260009893,13.0166,192.07,191.97,1.66428097]
[1722260010081,45.34,192.06,191.97,1.66428097]
[1722260010410,5.2081,192.01,191.97,1.66428097]
[1722260010604,5.2078,192.02,191.97,1.66428097]
[1722260010777,5.2081,192.01,191.97,1.66428097]
[1722260011694,5.2088,191.98,191.97,1.66428097]
[1722260012282,5.2086,191.99,191.97,1.66428097]
[1722260012789,5.2088,191.98,191.97,1.66428097]
[1722260013188,34.5688,191.98,191.97,1.66428097]
[1722260013399,34.5688,191.98,191.91,15.9208]
[1722260013400,94.7,191.98,191.91,15.9208]
[1722260013592,45.34,191.97,191.91,15.9208]
[1722260014110,5.2103,191.93,191.87,6.1611]
[1722260014295,5.2099,191.94,191.87,6.1611]
[1722260014628,5.2106,191.92,191.87,6.1611]
[1722260015206,5.2106,191.92,191.86,15.9208]
[1722260015403,0.17,191.93,191.86,15.9208]
[1722260015604,5.2104,191.93,191.86,15.9208]
[1722260015802,0.34,191.94,191.86,15.9208]
[1722260016002,0.17,191.94,191.86,15.9208]
[1722260016222,45.34,191.95,191.86,15.9208]
[1722260016606,5.2102,191.93,191.86,15.9208]
[1722260017023,45.34,191.95,191.86,15.9208]
[1722260017024,5.2105,191.92,191.86,15.9208]
[1722260017299,5.2108,191.91,191.86,15.9208]
[1722260017707,29.36,191.94,191.86,15.9208]
[1722260017893,5.2107,191.92,191.86,15.9208]
[1722260018093,50.5504,191.93,191.86,15.9208]
[1722260018312,5.2105,191.92,191.86,15.9208]
[1722260018517,5.211,191.91,191.86,15.9208]
[1722260018906,5.211,191.9,191.86,15.9208]
[1722260019713,45.34,191.93,191.86,15.9208]
[1722260020031,5.2107,191.91,191.86,15.9208]
[1722260020420,45.34,191.93,191.86,15.9208]
[1722260020802,20.0,191.92,191.86,15.9208]
[1722260021003,25.2105,191.92,191.86,15.9208]
[1722260021208,5.2105,191.92,191.86,15.9208]
[1722260021420,5.2092,191.97,191.87,1.04223711]
[1722260021727,5.2098,191.95,191.86,15.9208]
[1722260022311,54.75709554,192.0,191.86,15.9208]
[1722260022518,5.2097,191.95,191.86,15.9208]
[1722260022695,5.2099,191.94,191.86,15.9208]
[1722260023339,41.24498103,192.0,191.86,15.9208]
[1722260023623,29.36,191.98,191.86,15.9208]
[1722260023923,65.34,191.97,191.86,15.9208]
[1722260024101,65.34,191.97,191.86,14.9208]
[1722260024301,5.211,191.9,191.86,14.9208]
[1722260025020,5.2099,191.94,191.87,1.0423327]
[1722260025325,5.2099,191.94,191.86,14.9208]
[1722260025619,5.2103,191.93,191.86,14.9208]
[1722260025998,5.2099,191.95,191.86,14.9208]
[1722260026197,27.76709554,191.97,191.87,1.04216925]
[1722260026422,5.2094,191.97,191.87,1.04216925]
[1722260026623,5.2086,191.99,191.87,1.04216925]
[1722260026800,31.47474398,192.02,191.88,0.17]
[1722260027520,29.36,192.02,191.88,0.17]
[1722260027836,29.36,192.02,191.89,1.04184589]
[1722260028202,29.36,192.02,191.9,22.5958]
[1722260028417,5.208,192.02,191.91,45.0]
[1722260028620,5.208,192.01,191.92,1.04173125]
[1722260028830,5.208,192.01,191.93,1.04172742]
[1722260029131,5.208,192.01,191.91,46.04172894]
[1722260029431,5.208,192.02,191.91,45.0]
[1722260029632,31.45119732,192.06,191.91,45.0]
[1722260029833,7.76709554,192.08,191.93,15.5102]
[1722260030021,7.76709554,192.08,191.94,1.04153591]
[1722260030221,5.2072,192.04,191.94,46.04153591]
[1722260030421,5.2075,192.03,191.94,46.04153591]
[1722260030934,7.76709554,192.08,191.95,1.04154176]
[1722260031239,13.0154,192.08,191.94,45.0]
[1722260031418,13.0154,192.08,191.93,15.5102]
[1722260031621,5.2076,192.03,191.94,45.0]
[1722260031823,5.2071,192.05,191.94,45.0]
[1722260032117,5.2073,192.04,191.94,45.0]
[1722260032332,20.78249554,192.08,191.94,45.0]
[1722260032523,45.34,192.07,191.93,15.5102]
[1722260032726,5.2075,192.04,191.94,45.0]
[1722260033544,5.2075,192.03,191.94,45.0]
[1722260034218,20.78249554,192.08,191.94,45.0]
[1722260035240,5.2074,192.04,191.94,45.0]
[1722260035426,5.2076,192.03,191.94,45.0]
[1722260035841,5.208,192.01,191.93,15.5102]
[1722260036841,5.2078,192.02,191.93,15.5102]
[1722260037643,5.2081,192.01,191.93,15.5102]
[1722260038145,5.2075,192.03,191.94,1.04173516]
[1722260038551,5.2075,192.03,191.93,15.5102]
[1722260038552,5.2078,192.02,191.93,15.5102]
[1722260038842,5.2077,192.03,191.93,15.5102]
[1722260039052,42.3774,192.06,191.93,15.5102]
[1722260039349,5.208,192.02,191.93,15.5102]
[1722260039578,5.2081,192.01,191.93,15.5102]
[1722260039724,5.2081,192.01,191.94,1.04170247]
[1722260039928,5.2083,192.0,191.93,15.5102]
[1722260040326,5.2086,191.99,191.93,15.5102]
[1722260040637,5.2083,192.0,191.93,15.5102]
[1722260041541,5.2085,192.0,191.93,15.5102]
[1722260041744,5.2083,192.0,191.93,15.5102]
[1722260041952,31.3181,192.01,191.94,1.04181535]
[1722260042535,5.2084,192.0,191.93,15.5102]
[1722260042838,31.3182,192.01,191.93,15.5102]
[1722260043146,26.11,192.01,191.93,15.5102]
[1722260043366,31.3181,192.01,191.93,15.5102]
[1722260043882,0.17,192.0,191.93,15.5102]
[1722260044178,26.11,191.98,191.9,6.0209]
[1722260044347,5.2099,191.94,191.9,6.0209]
[1722260044551,5.2097,191.95,191.9,6.0209]
[1722260045347,5.2098,191.95,191.9,6.0209]
[1722260045656,0.17,191.97,191.9,6.0209]
[1722260045871,45.17,191.97,191.9,6.0209]
[1722260046243,5.2097,191.95,191.9,6.0209]
[1722260046449,26.11,191.98,191.9,6.0209]
[1722260046649,31.3189,191.98,191.91,1.04196522]
[1722260047182,5.2085,192.0,191.9,6.0209]
[1722260047484,5.2086,191.99,191.9,6.0209]
[1722260048158,7.76709554,192.02,191.91,1.04185959]
[1722260048366,26.11,192.06,191.92,16.0587]
[1722260048556,28.21058902,192.06,191.93,1.04167044]
[1722260049049,5.2075,192.03,191.93,1.04167044]
[1722260049459,5.2075,192.03,191.93,46.04167044]
[1722260049667,5.2079,192.02,191.93,45.0]
[1722260049877,26.11,192.03,191.92,16.0587]
[1722260050380,5.2086,191.99,191.92,16.0587]
[1722260050578,39.1291,192.03,191.92,16.0587]
[1722260050882,5.2088,191.99,191.92,16.0587]
[1722260051080,5.2089,191.98,191.92,16.0587]
[1722260051281,31.3186,192.0,191.92,16.0587]
[1722260051474,26.11,192.0,191.92,16.0587]
[1722260052188,5.2088,191.99,191.92,16.0587]
[1722260053157,26.11,192.0,191.92,16.0587]
[1722260053358,5.2078,192.02,191.93,46.04183609]
[1722260053671,5.2078,192.02,191.92,16.0587]
[1722260053672,5.208,192.02,191.92,16.0587]
[1722260054193,26.11,192.03,191.92,16.0587]
[1722260054357,5.2081,192.01,191.92,16.0587]
[1722260055087,5.2086,191.99,191.92,16.0587]
[1722260055376,5.2089,191.98,191.92,16.0587]
[1722260055584,20.78509554,192.05,191.92,16.0587]
[1722260055585,5.2092,191.97,191.92,16.0587]
[1722260055787,26.11,192.0,191.92,16.0587]
[1722260055966,5.2094,191.96,191.92,16.0587]
[1722260056287,5.21,191.94,191.92,16.0587]
[1722260056483,26.11,191.97,191.92,16.0587]
[1722260056695,5.2096,191.96,191.92,16.0587]
[1722260056857,31.3191,191.97,191.92,16.0587]
[1722260057283,5.2095,191.96,191.92,16.0587]
[1722260058979,5.2098,191.95,191.92,16.0587]
[1722260059181,26.11,191.97,191.92,16.0587]
[1722260059386,5.2102,191.93,191.83,22.1262]
[1722260059958,5.21,191.94,191.83,22.1262]
[1722260060377,5.21,191.94,191.83,28.38121444]
[1722260060867,5.2097,191.95,191.84,45.0]
[1722260062175,5.21,191.94,191.84,45.0]
[1722260062866,5.2103,191.93,191.84,45.0]
[1722260063074,5.2099,191.94,191.84,45.0]
[1722260063271,26.11,191.97,191.87,5.2115]
[1722260063469,12.97569554,191.99,191.87,1.04195621]
[1722260063672,5.2089,191.98,191.88,21.9164]
[1722260063872,7.76709554,191.99,191.89,1.04199507]
[1722260064079,5.2094,191.96,191.9,1.0419912]
[1722260064385,7.76709554,191.99,191.88,21.9164]
[1722260064386,5.2102,191.93,191.88,21.9164]
[1722260065285,26.11,191.94,191.88,21.9164]
[1722260065286,31.32,191.94,191.88,21.9164]
[1722260065681,26.11,191.94,191.88,21.9164]
[1722260066367,31.3201,191.94,191.88,21.9164]
[1722260067087,5.2103,191.93,191.88,21.9164]
[1722260067285,26.11,191.94,191.88,21.9164]
[1722260067499,31.3201,191.94,191.88,21.9164]
[1722260067997,26.11,191.94,191.83,6.0775]
[1722260068299,5.211,191.9,191.84,15.7944]
[1722260068502,5.2108,191.91,191.84,15.7944]
[1722260068791,5.2105,191.92,191.84,15.7944]
[1722260069300,5.2102,191.93,191.84,15.7944]
[1722260070065,5.2105,191.92,191.84,15.7944]
[1722260070572,5.2102,191.93,191.84,15.7944]
[1722260070805,5.2105,191.92,191.84,15.7944]
[1722260071289,5.2108,191.91,191.84,15.7944]
[1722260072162,5.211,191.9,191.84,15.7944]
[1722260072993,31.3208,191.91,191.84,15.7944]
[1722260073395,26.11,191.91,191.84,15.7944]
[1722260073793,31.3208,191.91,191.84,15.7944]
[1722260073992,26.11,191.91,191.84,15.7944]
[1722260074405,31.3208,191.91,191.84,15.7944]
[1722260074704,5.2102,191.93,191.84,15.7944]
[1722260074921,33.87709554,191.94,191.84,15.7944]
[1722260075522,7.76709554,191.94,191.84,15.7944]
[1722260075823,26.11,191.97,191.85,45.0]
[1722260075998,26.11,191.97,191.84,15.7944]
[1722260076510,5.2105,191.92,191.84,15.7944]
[1722260076700,5.2108,191.91,191.84,15.7944]
[1722260076899,5.2108,191.91,191.85,1.04229774]
[1722260077229,5.2105,191.92,191.85,1.04229774]
[1722260077394,5.2105,191.92,191.84,15.7944]
[1722260077831,9.90040797,191.97,191.86,6.201]
[1722260078020,26.11,192.07,191.95,6.201]
[1722260078320,5.2059,192.09,191.96,1.04170869]
[1722260078321,26.11,192.09,191.96,1.04170869]
[1722260078733,26.11,192.09,191.97,16.016]
[1722260079028,26.11,192.09,191.98,1.04145644]
[1722260079195,73.1,192.09,191.97,16.016]
[1722260079392,26.11,192.06,191.97,16.016]
[1722260079597,13.98504397,192.09,191.98,1.04154873]
[1722260079792,5.2062,192.08,191.97,16.016]
[1722260080814,45.0,192.07,191.97,16.016]
[1722260081020,26.11,192.03,191.97,16.016]
[1722260081319,5.2081,192.01,191.92,16.0668]
[1722260081621,45.34,192.02,191.92,16.0668]
[1722260081622,26.11,191.97,191.92,16.0668]
[1722260082819,45.34,191.96,191.87,15.6896]
[1722260083136,5.2098,191.95,191.87,15.6896]
[1722260083506,45.34,191.96,191.87,15.6896]
[1722260083507,71.45,191.94,191.87,15.6896]
[1722260083741,26.28,191.94,191.87,15.6896]
[1722260083905,45.17,191.93,191.87,15.6896]
[1722260084602,0.17,191.93,191.87,15.6896]
[1722260084802,26.28,191.94,191.87,15.6896]
[1722260085125,0.17,191.94,191.87,15.6896]
[1722260085311,45.34,191.95,191.87,15.6896]
[1722260086105,83.49105809,192.0,191.87,15.6896]
[1722260086403,5.2091,191.97,191.87,15.6896]
[1722260087023,5.2087,191.99,191.87,15.6896]
[1722260087228,5.2088,191.98,191.87,15.6896]
[1722260087435,45.17,191.97,191.87,15.6896]
[1722260087815,5.2097,191.95,191.87,15.6896]
[1722260088450,0.17,191.96,191.87,15.6896]
[1722260088828,5.2097,191.95,191.87,15.6896]
[1722260090025,5.2105,191.92,191.87,15.6896]
[1722260090955,5.2107,191.91,191.87,15.6896]
[1722260091156,5.2105,191.92,191.87,15.6896]
[1722260091763,5.211,191.9,191.83,15.325]
[1722260091927,0.34,191.91,191.83,15.325]
[1722260092130,45.34,191.91,191.83,15.325]
[1722260092366,45.17,191.91,191.83,15.325]
[1722260093357,50.3808,191.91,191.83,15.325]
[1722260093565,5.3811,191.9,191.83,15.325]
[1722260093762,5.2114,191.89,191.83,15.325]
[1722260093974,0.34,191.88,191.77,6.5736]
[1722260094181,0.17,191.9,191.77,6.5736]
[1722260094355,5.2124,191.85,191.77,6.5736]